[Event "FIDE World Rapid Chess Championship 2021"]
[White "Costachi, Mihnea"]
[Black "Quparadze, Giga"]
[WhiteFideId "1217518"]
[BlackFideId "13602250"]
[WhiteElo "2443"]
[BlackElo "2583"]
[Result "0-1"]
[Round "10"]
[TimeControl "900+10"]
[Date "2021.12.28"]
[WhiteClock "0:00:32"]
[BlackClock "0:05:18"]

1. d4 {[%clk 0:15:00]}  Nf6 {[%clk 0:15:00]} 2. c4 {[%clk 0:15:00]}  e6 {[%clk 0:15:00]} 3. Nf3 {[%clk 0:15:00]}  Bb4+ {[%clk 0:16:11]} 4. Bd2 {[%clk 0:14:24]}  a5 {[%clk 0:16:11]} 5. g3 {[%clk 0:14:24]}  d5 {[%clk 0:16:11]} 6. Bg2 {[%clk 0:14:24]}  O-O {[%clk 0:16:11]} 7. O-O {[%clk 0:14:24]}  Be7 {[%clk 0:16:11]} 8. Qc2 {[%clk 0:14:24]}  c6 {[%clk 0:16:11]} 9. Bf4 {[%clk 0:14:24]}  Nbd7 {[%clk 0:16:11]} 10. b3 {[%clk 0:14:24]}  b6 {[%clk 0:16:11]} 11. Nc3 {[%clk 0:12:01]}  Ba6 {[%clk 0:16:14]} 12. Nd2 {[%clk 0:12:01]}  b5 {[%clk 0:16:14]} 13. e4 {[%clk 0:12:01]}  Rc8 {[%clk 0:16:14]} 14. Rfe1 {[%clk 0:10:41]}  bxc4 {[%clk 0:15:38]} 15. bxc4 {[%clk 0:10:41]}  dxc4 {[%clk 0:15:38]} 16. Na4 {[%clk 0:10:41]}  Bb4 {[%clk 0:15:15]} 17. Red1 {[%clk 0:10:12]}  Qe7 {[%clk 0:15:15]} 18. Nxc4 {[%clk 0:10:12]}  Bxc4 {[%clk 0:15:15]} 19. Qxc4 {[%clk 0:10:12]}  e5 {[%clk 0:15:15]} 20. dxe5 {[%clk 0:09:51]}  Nxe5 {[%clk 0:12:17]} 21. Qc2 {[%clk 0:09:51]}  Ng6 {[%clk 0:12:17]} 22. Be3 {[%clk 0:09:51]}  Rfe8 {[%clk 0:12:17]} 23. Bc5 {[%clk 0:07:28]}  Bxc5 {[%clk 0:12:17]} 24. Nxc5 {[%clk 0:07:28]}  h5 {[%clk 0:12:17]} 25. Rab1 {[%clk 0:07:28]}  Rb8 {[%clk 0:12:17]} 26. Rxb8 {[%clk 0:07:28]}  Rxb8 {[%clk 0:12:17]} 27. Nb3 {[%clk 0:07:28]}  Qa3 {[%clk 0:12:38]} 28. Rd2 {[%clk 0:06:00]}  a4 {[%clk 0:12:05]} 29. Nc5 {[%clk 0:03:31]}  Ne5 {[%clk 0:12:05]} 30. Nd3 {[%clk 0:02:45]}  Nfd7 {[%clk 0:10:30]} 31. h3 {[%clk 0:02:45]}  h4 {[%clk 0:10:30]} 32. gxh4 {[%clk 0:02:45]}  Qe7 {[%clk 0:10:30]} 33. f4 {[%clk 0:02:45]}  Ng6 {[%clk 0:09:21]} 34. Qxc6 {[%clk 0:01:42]}  Nxh4 {[%clk 0:09:21]} 35. Nf2 {[%clk 0:01:42]}  Ne5 {[%clk 0:09:08]} 36. Qc3 {[%clk 0:01:34]}  Neg6 {[%clk 0:09:08]} 37. Qg3 {[%clk 0:01:34]}  Qc7 {[%clk 0:09:08]} 38. e5 {[%clk 0:00:44]}  Qc1+ {[%clk 0:06:30]} 39. Rd1 {[%clk 0:00:44]}  Qxf4 {[%clk 0:06:30]} 40. Qxf4 {[%clk 0:00:44]}  Nxf4 {[%clk 0:06:30]} 41. Bc6 {[%clk 0:00:44]}  a3 {[%clk 0:06:30]} 42. Kh2 {[%clk 0:00:38]}  Rb2 {[%clk 0:05:25]} 43. Rd8+ {[%clk 0:00:38]}  Kh7 {[%clk 0:05:25]} 44. Kg3 {[%clk 0:00:38]}  g5 {[%clk 0:05:25]} 45. Be4+ {[%clk 0:00:32]}  Kg7 {[%clk 0:05:18]} 46. Ra8 {[%clk 0:00:32]}  Rxa2 {[%clk 0:05:18]} 47. Nd3 {[%clk 0:00:32]}  Nxd3 {[%clk 0:05:18]} 48. Bxd3 {[%clk 0:00:32]}  Rg2# {[%clk 0:05:18]} 0-1


[Site "http://www.Chess.com"]

[Event "FIDE World Rapid Chess Championship 2021"]
[White "Alonso Rosell, Alvar"]
[Black "Petrosyan, Manuel"]
[WhiteFideId "2270544"]
[BlackFideId "13300857"]
[WhiteElo "2571"]
[BlackElo "2514"]
[Result "0-1"]
[Round "10"]
[TimeControl "900+10"]
[Date "2021.12.28"]
[WhiteClock "0:00:21"]
[BlackClock "0:00:41"]

1. d4 {[%clk 0:15:00]}  Nf6 {[%clk 0:15:00]} 2. Bf4 {[%clk 0:15:00]}  g6 {[%clk 0:14:05]} 3. c3 {[%clk 0:15:39]}  Bg7 {[%clk 0:14:05]} 4. Nd2 {[%clk 0:15:39]}  d5 {[%clk 0:14:05]} 5. e3 {[%clk 0:15:39]}  O-O {[%clk 0:14:05]} 6. Ngf3 {[%clk 0:15:39]}  b6 {[%clk 0:14:05]} 7. Be2 {[%clk 0:15:39]}  c5 {[%clk 0:14:05]} 8. O-O {[%clk 0:15:39]}  Nc6 {[%clk 0:14:05]} 9. Ne5 {[%clk 0:13:40]}  Bb7 {[%clk 0:11:34]} 10. Bf3 {[%clk 0:13:40]}  Nxe5 {[%clk 0:11:34]} 11. Bxe5 {[%clk 0:13:40]}  Nd7 {[%clk 0:11:34]} 12. Bxg7 {[%clk 0:13:40]}  Kxg7 {[%clk 0:11:34]} 13. b4 {[%clk 0:13:40]}  Qc7 {[%clk 0:11:34]} 14. bxc5 {[%clk 0:09:43]}  bxc5 {[%clk 0:07:16]} 15. Qb3 {[%clk 0:09:43]}  e6 {[%clk 0:07:16]} 16. Qa3 {[%clk 0:06:57]}  a5 {[%clk 0:07:16]} 17. Rab1 {[%clk 0:07:03]}  Ba6 {[%clk 0:05:48]} 18. Rfc1 {[%clk 0:07:03]}  Bd3 {[%clk 0:05:48]} 19. Ra1 {[%clk 0:07:03]}  c4 {[%clk 0:05:48]} 20. e4 {[%clk 0:07:03]}  Nf6 {[%clk 0:05:48]} 21. Re1 {[%clk 0:07:03]}  Qf4 {[%clk 0:05:48]} 22. Qc1 {[%clk 0:07:03]}  dxe4 {[%clk 0:05:27]} 23. Nxe4 {[%clk 0:05:20]}  Qxc1 {[%clk 0:05:27]} 24. Raxc1 {[%clk 0:05:20]}  Nxe4 {[%clk 0:05:27]} 25. Bxe4 {[%clk 0:05:20]}  Bxe4 {[%clk 0:05:27]} 26. Rxe4 {[%clk 0:05:20]}  Rfb8 {[%clk 0:05:27]} 27. Re5 {[%clk 0:05:51]}  Rb2 {[%clk 0:01:47]} 28. a3 {[%clk 0:05:51]}  Ra2 {[%clk 0:01:14]} 29. Rc5 {[%clk 0:02:55]}  Rxa3 {[%clk 0:01:14]} 30. Rxc4 {[%clk 0:02:55]}  a4 {[%clk 0:01:14]} 31. Rb4 {[%clk 0:02:55]}  Ra2 {[%clk 0:01:14]} 32. Kf1 {[%clk 0:01:31]}  a3 {[%clk 0:00:53]} 33. Ke1 {[%clk 0:01:31]}  Kf6 {[%clk 0:00:53]} 34. c4 {[%clk 0:00:21]}  Rb2 {[%clk 0:00:41]} 35. Rb5 {[%clk 0:00:21]}  Ra4 {[%clk 0:00:41]} 36. Ra1 {[%clk 0:00:21]}  Rxc4 {[%clk 0:00:41]} 37. Ra5 {[%clk 0:00:21]}  Rcc2 {[%clk 0:00:41]} 38. R5xa3 {[%clk 0:00:21]}  Re2+ {[%clk 0:00:41]} 0-1


[Site "http://www.Chess.com"]

[Event "FIDE World Rapid Chess Championship 2021"]
[White "Kantor, Gergely"]
[Black "Theodorou, Nikolas"]
[WhiteFideId "751499"]
[BlackFideId "4262875"]
[WhiteElo "2454"]
[BlackElo "2559"]
[Result "0-1"]
[Round "10"]
[TimeControl "900+10"]
[Date "2021.12.28"]
[WhiteClock "0:00:34"]
[BlackClock "0:02:11"]

1. d4 {[%clk 0:14:36]}  Nf6 {[%clk 0:15:37]} 2. c4 {[%clk 0:14:36]}  g6 {[%clk 0:15:37]} 3. Nc3 {[%clk 0:14:36]}  Bg7 {[%clk 0:15:37]} 4. e4 {[%clk 0:14:36]}  d6 {[%clk 0:15:37]} 5. Nge2 {[%clk 0:14:36]}  Nbd7 {[%clk 0:15:37]} 6. f3 {[%clk 0:14:36]}  O-O {[%clk 0:15:37]} 7. Be3 {[%clk 0:14:36]}  a6 {[%clk 0:15:37]} 8. Qd2 {[%clk 0:14:36]}  b5 {[%clk 0:15:37]} 9. cxb5 {[%clk 0:13:21]}  axb5 {[%clk 0:15:36]} 10. Nxb5 {[%clk 0:13:21]}  c6 {[%clk 0:15:36]} 11. Nbc3 {[%clk 0:13:21]}  e5 {[%clk 0:15:36]} 12. Ng3 {[%clk 0:13:21]}  d5 {[%clk 0:15:36]} 13. exd5 {[%clk 0:13:21]}  Nxd5 {[%clk 0:15:36]} 14. Nxd5 {[%clk 0:11:43]}  cxd5 {[%clk 0:15:36]} 15. Be2 {[%clk 0:11:43]}  Qf6 {[%clk 0:15:36]} 16. dxe5 {[%clk 0:11:54]}  Nxe5 {[%clk 0:13:35]} 17. Qxd5 {[%clk 0:11:54]}  Ba6 {[%clk 0:13:14]} 18. O-O {[%clk 0:08:37]}  Bxe2 {[%clk 0:06:39]} 19. Nxe2 {[%clk 0:08:37]}  Qa6 {[%clk 0:06:39]} 20. Ng3 {[%clk 0:08:37]}  Nc4 {[%clk 0:06:32]} 21. Bg5 {[%clk 0:06:34]}  h6 {[%clk 0:06:32]} 22. Rac1 {[%clk 0:05:12]}  Nb6 {[%clk 0:05:01]} 23. Qd2 {[%clk 0:02:47]}  hxg5 {[%clk 0:05:01]} 24. Qxg5 {[%clk 0:02:47]}  Qxa2 {[%clk 0:05:01]} 25. Rc6 {[%clk 0:02:47]}  Qxb2 {[%clk 0:04:51]} 26. Ne4 {[%clk 0:01:39]}  Ra1 {[%clk 0:04:51]} 27. Nf6+ {[%clk 0:01:39]}  Bxf6 {[%clk 0:04:51]} 28. Qxf6 {[%clk 0:01:39]}  Rxf1+ {[%clk 0:03:08]} 29. Kxf1 {[%clk 0:01:35]}  Qb1+ {[%clk 0:03:08]} 30. Kf2 {[%clk 0:01:35]}  Re8 {[%clk 0:03:08]} 31. Kg3 {[%clk 0:01:35]}  Nd5 {[%clk 0:03:08]} 32. Qg5 {[%clk 0:01:35]}  Qe1+ {[%clk 0:03:08]} 33. Kh3 {[%clk 0:01:35]}  Kg7 {[%clk 0:03:08]} 34. Rd6 {[%clk 0:00:34]}  Rh8+ {[%clk 0:02:11]} 35. Kg4 {[%clk 0:00:34]}  f5+ {[%clk 0:02:11]} 0-1


[Site "http://www.Chess.com"]

[Event "FIDE World Rapid Chess Championship 2021"]
[White "Mikhalevski, Victor"]
[Black "Kozak, Adam"]
[WhiteFideId "2801914"]
[BlackFideId "753246"]
[WhiteElo "2366"]
[BlackElo "2552"]
[Result "0-1"]
[Round "10"]
[TimeControl "900+10"]
[Date "2021.12.28"]
[WhiteClock "0:00:11"]
[BlackClock "0:00:39"]

1. d4 {[%clk 0:15:00]}  Nf6 {[%clk 0:15:00]} 2. c4 {[%clk 0:15:00]}  e6 {[%clk 0:15:00]} 3. Nf3 {[%clk 0:15:05]}  d5 {[%clk 0:14:43]} 4. g3 {[%clk 0:15:05]}  Bb4+ {[%clk 0:14:43]} 5. Nbd2 {[%clk 0:15:05]}  O-O {[%clk 0:14:43]} 6. Bg2 {[%clk 0:15:05]}  dxc4 {[%clk 0:14:43]} 7. O-O {[%clk 0:15:05]}  b5 {[%clk 0:14:43]} 8. a3 {[%clk 0:15:05]}  Be7 {[%clk 0:13:49]} 9. Ne5 {[%clk 0:14:57]}  Nd5 {[%clk 0:13:49]} 10. b3 {[%clk 0:14:57]}  Bb7 {[%clk 0:06:55]} 11. bxc4 {[%clk 0:14:57]}  Nc3 {[%clk 0:06:55]} 12. Qe1 {[%clk 0:09:58]}  Bxg2 {[%clk 0:06:55]} 13. Kxg2 {[%clk 0:09:58]}  bxc4 {[%clk 0:03:30]} 14. Ndxc4 {[%clk 0:10:14]}  Qxd4 {[%clk 0:03:18]} 15. Be3 {[%clk 0:10:14]}  Qd5+ {[%clk 0:03:18]} 16. f3 {[%clk 0:10:14]}  Na4 {[%clk 0:02:21]} 17. Qb1 {[%clk 0:06:33]}  Nb6 {[%clk 0:02:21]} 18. Qc2 {[%clk 0:05:13]}  Nxc4 {[%clk 0:00:35]} 19. Nxc4 {[%clk 0:03:14]}  Nd7 {[%clk 0:00:35]} 20. Rfd1 {[%clk 0:03:14]}  Qc6 {[%clk 0:00:35]} 21. Rac1 {[%clk 0:03:14]}  Nb6 {[%clk 0:00:35]} 22. Qb3 {[%clk 0:03:14]}  Nxc4 {[%clk 0:00:35]} 23. Rxc4 {[%clk 0:03:14]}  Qa6 {[%clk 0:00:35]} 24. Ra4 {[%clk 0:02:35]}  Qxe2+ {[%clk 0:00:28]} 25. Bf2 {[%clk 0:02:35]}  Bc5 {[%clk 0:00:28]} 26. Rf1 {[%clk 0:02:35]}  Bxf2 {[%clk 0:00:28]} 27. Rxf2 {[%clk 0:02:35]}  Qe5 {[%clk 0:00:28]} 28. Ra6 {[%clk 0:02:35]}  c5 {[%clk 0:00:28]} 29. Qc4 {[%clk 0:02:35]}  Rfc8 {[%clk 0:00:28]} 30. Rd2 {[%clk 0:01:26]}  g6 {[%clk 0:00:21]} 31. Ra5 {[%clk 0:01:26]}  Rc7 {[%clk 0:00:21]} 32. Rb5 {[%clk 0:00:16]}  Rac8 {[%clk 0:00:22]} 33. a4 {[%clk 0:00:16]}  Qe3 {[%clk 0:00:22]} 34. Re2 {[%clk 0:00:16]}  Qd4 {[%clk 0:00:22]} 35. Rc2 {[%clk 0:00:16]}  Qa1 {[%clk 0:00:22]} 36. Rd2 {[%clk 0:00:16]}  Qe1 {[%clk 0:00:22]} 37. Rbb2 {[%clk 0:00:16]}  h5 {[%clk 0:00:22]} 38. Qc3 {[%clk 0:00:16]}  Qa1 {[%clk 0:00:22]} 39. a5 {[%clk 0:00:16]}  Qa4 {[%clk 0:00:22]} 40. Qf6 {[%clk 0:00:16]}  Qe8 {[%clk 0:00:22]} 41. Rd1 {[%clk 0:00:16]}  c4 {[%clk 0:00:22]} 42. Rbd2 {[%clk 0:00:16]}  Re7 {[%clk 0:00:22]} 43. Qc3 {[%clk 0:00:16]}  e5 {[%clk 0:00:22]} 44. Kh3 {[%clk 0:00:16]}  Qc6 {[%clk 0:00:22]} 45. Rd6 {[%clk 0:00:16]}  Qe8 {[%clk 0:00:22]} 46. R6d5 {[%clk 0:00:16]}  Kh7 {[%clk 0:00:22]} 47. R1d2 {[%clk 0:00:16]}  Qh8 {[%clk 0:00:22]} 48. Rd7 {[%clk 0:00:16]}  Qf6 {[%clk 0:00:22]} 49. R7d6 {[%clk 0:00:11]}  Qf5+ {[%clk 0:00:39]} 50. Kg2 {[%clk 0:00:11]}  Rb7 {[%clk 0:00:39]} 51. R6d5 {[%clk 0:00:11]}  Rb3 {[%clk 0:00:39]} 52. Qxe5 {[%clk 0:00:11]}  Qxf3+ {[%clk 0:00:39]} 53. Kh3 {[%clk 0:00:11]}  Qg4+ {[%clk 0:00:39]} 54. Kg2 {[%clk 0:00:11]}  Qf3+ {[%clk 0:00:39]} 55. Kh3 {[%clk 0:00:11]}  Re3 {[%clk 0:00:39]} 56. Qd6 {[%clk 0:00:11]}  Qf1+ {[%clk 0:00:39]} 57. Rg2 {[%clk 0:00:11]}  Re2 {[%clk 0:00:39]} 0-1


[Site "http://www.Chess.com"]

[Event "FIDE World Rapid Chess Championship 2021"]
[White "Shoker, Samy"]
[Black "Dziuba, Marcin"]
[WhiteFideId "627143"]
[BlackFideId "1112953"]
[WhiteElo "2550"]
[BlackElo "2424"]
[Result "1-0"]
[Round "10"]
[TimeControl "900+10"]
[Date "2021.12.28"]
[WhiteClock "0:04:07"]
[BlackClock "0:00:15"]

1. Nf3 {[%clk 0:15:00]}  d5 {[%clk 0:15:00]} 2. g3 {[%clk 0:16:18]}  c5 {[%clk 0:15:15]} 3. Bg2 {[%clk 0:16:18]}  Nf6 {[%clk 0:15:15]} 4. O-O {[%clk 0:16:18]}  g6 {[%clk 0:15:15]} 5. c4 {[%clk 0:16:18]}  Bg7 {[%clk 0:15:15]} 6. cxd5 {[%clk 0:16:18]}  Nxd5 {[%clk 0:15:15]} 7. Nc3 {[%clk 0:16:18]}  Nc6 {[%clk 0:15:15]} 8. Nxd5 {[%clk 0:16:18]}  Qxd5 {[%clk 0:15:15]} 9. d3 {[%clk 0:16:18]}  O-O {[%clk 0:15:15]} 10. Be3 {[%clk 0:16:18]}  Bd7 {[%clk 0:08:32]} 11. d4 {[%clk 0:13:00]}  Rfd8 {[%clk 0:08:40]} 12. Ne5 {[%clk 0:13:00]}  Qd6 {[%clk 0:08:40]} 13. Nxc6 {[%clk 0:12:39]}  Bxc6 {[%clk 0:05:28]} 14. dxc5 {[%clk 0:12:39]}  Qe5 {[%clk 0:05:28]} 15. Qc2 {[%clk 0:12:39]}  Qxb2 {[%clk 0:05:28]} 16. Qxb2 {[%clk 0:10:25]}  Bxb2 {[%clk 0:03:58]} 17. Rab1 {[%clk 0:10:25]}  Bd4 {[%clk 0:03:58]} 18. Rxb7 {[%clk 0:10:25]}  Bxb7 {[%clk 0:03:55]} 19. Bxb7 {[%clk 0:08:53]}  Bxe3 {[%clk 0:03:55]} 20. fxe3 {[%clk 0:08:53]}  Rac8 {[%clk 0:03:55]} 21. Bxc8 {[%clk 0:08:53]}  Rxc8 {[%clk 0:03:55]} 22. Rc1 {[%clk 0:08:53]}  Kg7 {[%clk 0:03:55]} 23. e4 {[%clk 0:08:12]}  Kf6 {[%clk 0:03:06]} 24. Kf2 {[%clk 0:08:12]}  Ke5 {[%clk 0:03:06]} 25. Ke3 {[%clk 0:08:12]}  Rc6 {[%clk 0:03:06]} 26. Kd3 {[%clk 0:08:12]}  a6 {[%clk 0:03:06]} 27. a4 {[%clk 0:08:12]}  g5 {[%clk 0:02:42]} 28. Rf1 {[%clk 0:06:36]}  f6 {[%clk 0:02:18]} 29. Rf5+ {[%clk 0:05:34]}  Ke6 {[%clk 0:02:18]} 30. Kc4 {[%clk 0:05:34]}  Kd7 {[%clk 0:02:18]} 31. e5 {[%clk 0:05:34]}  Re6 {[%clk 0:00:46]} 32. Kd5 {[%clk 0:03:51]}  Rc6 {[%clk 0:00:46]} 33. Kd4 {[%clk 0:03:51]}  Re6 {[%clk 0:00:46]} 34. e4 {[%clk 0:03:51]}  h6 {[%clk 0:00:46]} 35. exf6 {[%clk 0:03:51]}  exf6 {[%clk 0:00:46]} 36. Kd5 {[%clk 0:03:57]}  Rc6 {[%clk 0:00:43]} 37. e5 {[%clk 0:03:57]}  fxe5 {[%clk 0:00:43]} 38. Rf7+ {[%clk 0:03:57]}  Ke8 {[%clk 0:00:43]} 39. Kxc6 {[%clk 0:03:57]}  Kxf7 {[%clk 0:00:43]} 40. Kd5 {[%clk 0:03:57]}  Kf6 {[%clk 0:00:43]} 41. c6 {[%clk 0:04:07]}  Ke7 {[%clk 0:00:15]} 42. Kxe5 {[%clk 0:04:07]}  Kd8 {[%clk 0:00:15]} 43. g4 {[%clk 0:04:07]}  Kc7 {[%clk 0:00:15]} 44. Kd5 {[%clk 0:04:07]}  a5 {[%clk 0:00:15]} 45. Kc5 {[%clk 0:04:07]}  Kc8 {[%clk 0:00:15]} 46. Kb6 {[%clk 0:04:07]} 1-0


[Site "http://www.Chess.com"]

[Event "FIDE World Rapid Chess Championship 2021"]
[White "Piorun, Kacper"]
[Black "Vastrukhin, Oleg"]
[WhiteFideId "1130420"]
[BlackFideId "4192770"]
[WhiteElo "2547"]
[BlackElo "2382"]
[Result "1-0"]
[Round "10"]
[TimeControl "900+10"]
[Date "2021.12.28"]
[WhiteClock "0:00:54"]
[BlackClock "0:00:21"]

1. e4 {[%clk 0:15:00]}  e6 {[%clk 0:15:00]} 2. d4 {[%clk 0:15:00]}  d5 {[%clk 0:15:00]} 3. e5 {[%clk 0:15:00]}  c5 {[%clk 0:15:00]} 4. c3 {[%clk 0:15:00]}  Nc6 {[%clk 0:15:00]} 5. Nf3 {[%clk 0:15:00]}  Bd7 {[%clk 0:14:32]} 6. Bd3 {[%clk 0:16:28]}  Qb6 {[%clk 0:14:32]} 7. O-O {[%clk 0:16:28]}  cxd4 {[%clk 0:14:32]} 8. Re1 {[%clk 0:16:28]}  Nge7 {[%clk 0:14:32]} 9. h4 {[%clk 0:16:28]}  Nf5 {[%clk 0:14:32]} 10. Bxf5 {[%clk 0:16:28]}  exf5 {[%clk 0:14:32]} 11. cxd4 {[%clk 0:16:28]}  Be6 {[%clk 0:14:32]} 12. Nc3 {[%clk 0:16:28]}  h6 {[%clk 0:14:32]} 13. Ne2 {[%clk 0:16:28]}  Be7 {[%clk 0:13:41]} 14. h5 {[%clk 0:15:11]}  O-O {[%clk 0:13:41]} 15. Rb1 {[%clk 0:15:11]}  Rfc8 {[%clk 0:13:41]} 16. Nf4 {[%clk 0:15:11]}  a5 {[%clk 0:13:41]} 17. Kh1 {[%clk 0:15:02]}  Nb4 {[%clk 0:13:29]} 18. Nxe6 {[%clk 0:13:03]}  fxe6 {[%clk 0:12:40]} 19. Rg1 {[%clk 0:09:58]}  Qb5 {[%clk 0:11:47]} 20. g4 {[%clk 0:09:32]}  Qd3 {[%clk 0:11:47]} 21. Qxd3 {[%clk 0:09:27]}  Nxd3 {[%clk 0:07:54]} 22. gxf5 {[%clk 0:09:27]}  Nxf2+ {[%clk 0:07:54]} 23. Kh2 {[%clk 0:09:27]}  exf5 {[%clk 0:07:54]} 24. Rg2 {[%clk 0:06:38]}  Ng4+ {[%clk 0:07:20]} 25. Kg3 {[%clk 0:06:38]}  Kf7 {[%clk 0:07:20]} 26. Bf4 {[%clk 0:06:38]}  Rc4 {[%clk 0:07:20]} 27. Rd1 {[%clk 0:06:38]}  Rac8 {[%clk 0:07:20]} 28. Ne1 {[%clk 0:05:35]}  b5 {[%clk 0:06:34]} 29. Re2 {[%clk 0:05:35]}  Ke6 {[%clk 0:06:34]} 30. Rd3 {[%clk 0:05:35]}  a4 {[%clk 0:06:34]} 31. b3 {[%clk 0:05:35]}  axb3 {[%clk 0:06:34]} 32. axb3 {[%clk 0:05:35]}  R4c6 {[%clk 0:06:20]} 33. Ra2 {[%clk 0:04:41]}  g5 {[%clk 0:06:20]} 34. hxg6 {[%clk 0:04:41]}  Rg8 {[%clk 0:06:20]} 35. Kf3 {[%clk 0:04:41]}  Rxg6 {[%clk 0:06:20]} 36. Ng2 {[%clk 0:04:41]}  b4 {[%clk 0:04:41]} 37. Bg3 {[%clk 0:04:25]}  Bg5 {[%clk 0:04:41]} 38. Ra4 {[%clk 0:04:25]}  Rc3 {[%clk 0:04:41]} 39. Rxc3 {[%clk 0:02:56]}  bxc3 {[%clk 0:04:54]} 40. Ra6+ {[%clk 0:02:56]}  Kf7 {[%clk 0:04:54]} 41. Ra7+ {[%clk 0:02:56]}  Ke8 {[%clk 0:04:54]} 42. Rc7 {[%clk 0:02:56]}  Bd2 {[%clk 0:04:54]} 43. Nf4 {[%clk 0:02:56]}  Rb6 {[%clk 0:00:11]} 44. Nxd5 {[%clk 0:01:53]}  Rxb3 {[%clk 0:00:11]} 45. Ke2 {[%clk 0:01:53]}  Bg5 {[%clk 0:00:11]} 46. e6 {[%clk 0:01:53]}  Kf8 {[%clk 0:00:11]} 47. e7+ {[%clk 0:01:53]}  Kf7 {[%clk 0:00:11]} 48. Rc8 {[%clk 0:01:53]}  Bxe7 {[%clk 0:00:11]} 49. Rc7 {[%clk 0:01:53]}  c2 {[%clk 0:00:11]} 50. Rxe7+ {[%clk 0:01:53]}  Kg8 {[%clk 0:00:01]} 51. Bf4 {[%clk 0:00:43]}  Rb5 {[%clk 0:00:01]} 52. Rd7 {[%clk 0:00:43]}  Rb1 {[%clk 0:00:01]} 53. Rc7 {[%clk 0:00:43]}  Rd1 {[%clk 0:00:01]} 54. Ne7+ {[%clk 0:00:43]}  Kf7 {[%clk 0:00:01]} 55. Nxf5+ {[%clk 0:00:43]}  Kf6 {[%clk 0:00:01]} 56. Rc5 {[%clk 0:00:43]}  h5 {[%clk 0:00:01]} 57. Bd2 {[%clk 0:00:43]}  Rh1 {[%clk 0:00:01]} 58. Ne3 {[%clk 0:00:43]}  Rh2+ {[%clk 0:00:01]} 59. Kd3 {[%clk 0:00:43]}  Nf2+ {[%clk 0:00:01]} 60. Kxc2 {[%clk 0:00:43]}  Ne4 {[%clk 0:00:01]} 61. Rc6+ {[%clk 0:00:43]}  Ke7 {[%clk 0:00:01]} 62. Nc4 {[%clk 0:00:43]}  h4 {[%clk 0:00:21]} 63. Kd3 {[%clk 0:00:54]}  Nf2+ {[%clk 0:00:21]} 64. Ke3 {[%clk 0:00:54]}  h3 {[%clk 0:00:21]} 65. Bb4+ {[%clk 0:00:54]}  Ke8 {[%clk 0:00:21]} 66. Ne5 {[%clk 0:00:54]}  Kd8 {[%clk 0:00:21]} 67. Ba5+ {[%clk 0:00:54]}  Ke7 {[%clk 0:00:21]} 68. Rh6 {[%clk 0:00:54]}  Nd1+ {[%clk 0:00:21]} 69. Ke4 {[%clk 0:00:54]}  Re2+ {[%clk 0:00:21]} 70. Kd3 {[%clk 0:00:54]}  Rb2 {[%clk 0:00:21]} 71. d5 {[%clk 0:00:54]}  h2 {[%clk 0:00:21]} 72. d6+ {[%clk 0:00:54]}  Kf8 {[%clk 0:00:21]} 73. d7 {[%clk 0:00:54]}  Nf2+ {[%clk 0:00:21]} 74. Kc4 {[%clk 0:00:54]} 1-0


[Site "http://www.Chess.com"]

[Event "FIDE World Rapid Chess Championship 2021"]
[White "Indjic, Aleksandar"]
[Black "Holm, Kristian Stuvik"]
[WhiteFideId "911925"]
[BlackFideId "1508083"]
[WhiteElo "2544"]
[BlackElo "2409"]
[Result "1/2-1/2"]
[Round "10"]
[TimeControl "900+10"]
[Date "2021.12.28"]
[WhiteClock "0:00:24"]
[BlackClock "0:01:05"]

1. d4 {[%clk 0:14:03]}  Nf6 {[%clk 0:15:26]} 2. Nf3 {[%clk 0:14:03]}  d5 {[%clk 0:15:26]} 3. Bf4 {[%clk 0:14:03]}  e6 {[%clk 0:15:26]} 4. e3 {[%clk 0:14:03]}  c5 {[%clk 0:15:26]} 5. Nbd2 {[%clk 0:14:03]}  Qb6 {[%clk 0:15:26]} 6. Rb1 {[%clk 0:14:03]}  Bd6 {[%clk 0:15:26]} 7. dxc5 {[%clk 0:14:03]}  Qxc5 {[%clk 0:15:26]} 8. c4 {[%clk 0:14:03]}  Bxf4 {[%clk 0:14:13]} 9. exf4 {[%clk 0:14:08]}  O-O {[%clk 0:14:13]} 10. Be2 {[%clk 0:13:19]}  Rd8 {[%clk 0:08:42]} 11. O-O {[%clk 0:13:19]}  dxc4 {[%clk 0:08:42]} 12. Bxc4 {[%clk 0:13:19]}  Nc6 {[%clk 0:08:42]} 13. Rc1 {[%clk 0:13:19]}  Qb4 {[%clk 0:08:42]} 14. Qb3 {[%clk 0:13:19]}  Bd7 {[%clk 0:07:25]} 15. a3 {[%clk 0:13:18]}  Qxb3 {[%clk 0:07:25]} 16. Nxb3 {[%clk 0:13:18]}  Be8 {[%clk 0:07:25]} 17. g3 {[%clk 0:13:18]}  Rac8 {[%clk 0:07:25]} 18. Be2 {[%clk 0:12:35]}  Kf8 {[%clk 0:05:30]} 19. Nc5 {[%clk 0:12:35]}  b6 {[%clk 0:05:30]} 20. Nb3 {[%clk 0:12:35]}  Nd5 {[%clk 0:05:21]} 21. Ba6 {[%clk 0:11:01]}  Rb8 {[%clk 0:05:21]} 22. Be2 {[%clk 0:11:01]}  Rbc8 {[%clk 0:03:29]} 23. Rfd1 {[%clk 0:10:08]}  Nb8 {[%clk 0:03:29]} 24. Nbd4 {[%clk 0:10:08]}  Nc6 {[%clk 0:03:29]} 25. Kf1 {[%clk 0:10:06]}  Nxd4 {[%clk 0:02:53]} 26. Rxc8 {[%clk 0:10:06]}  Rxc8 {[%clk 0:02:53]} 27. Nxd4 {[%clk 0:10:06]}  Ba4 {[%clk 0:02:53]} 28. Rd2 {[%clk 0:10:06]}  Nf6 {[%clk 0:02:53]} 29. Bf3 {[%clk 0:05:22]}  Ke7 {[%clk 0:02:14]} 30. Ke2 {[%clk 0:05:22]}  h6 {[%clk 0:02:14]} 31. h4 {[%clk 0:05:22]}  Rc1 {[%clk 0:02:14]} 32. g4 {[%clk 0:05:22]}  Rc5 {[%clk 0:02:14]} 33. b4 {[%clk 0:04:10]}  Rc3 {[%clk 0:01:11]} 34. Rd3 {[%clk 0:04:10]}  Rxd3 {[%clk 0:01:11]} 35. Kxd3 {[%clk 0:04:10]}  Kd6 {[%clk 0:01:11]} 36. Kc4 {[%clk 0:04:10]}  Bd7 {[%clk 0:01:11]} 37. g5 {[%clk 0:04:10]}  Ne8 {[%clk 0:00:42]} 38. Kd3 {[%clk 0:02:11]}  Ke7 {[%clk 0:00:27]} 39. Bc6 {[%clk 0:02:11]}  Nd6 {[%clk 0:00:27]} 40. a4 {[%clk 0:02:11]}  a6 {[%clk 0:00:27]} 41. a5 {[%clk 0:02:11]}  bxa5 {[%clk 0:00:27]} 42. bxa5 {[%clk 0:02:11]}  Kd8 {[%clk 0:00:27]} 43. Bf3 {[%clk 0:02:11]}  Kc7 {[%clk 0:00:27]} 44. Kc3 {[%clk 0:02:11]}  Nb5+ {[%clk 0:00:27]} 45. Nxb5+ {[%clk 0:02:11]}  Bxb5 {[%clk 0:00:27]} 46. Bh5 {[%clk 0:02:11]}  f6 {[%clk 0:00:27]} 47. Kd4 {[%clk 0:02:11]}  Kd6 {[%clk 0:00:27]} 48. Bd1 {[%clk 0:02:11]}  Bf1 {[%clk 0:00:27]} 49. Bb3 {[%clk 0:02:11]}  Be2 {[%clk 0:00:27]} 50. Ke4 {[%clk 0:02:11]}  Bb5 {[%clk 0:00:27]} 51. Kd4 {[%clk 0:02:11]}  Be2 {[%clk 0:00:27]} 52. Bc2 {[%clk 0:00:24]}  Bb5 {[%clk 0:01:05]} 53. Be4 {[%clk 0:00:24]}  Be2 {[%clk 0:01:05]} 54. Bb7 {[%clk 0:00:24]}  Bb5 {[%clk 0:01:05]} 55. Bf3 {[%clk 0:00:24]}  Bf1 {[%clk 0:01:05]} 56. Bd1 {[%clk 0:00:24]}  Bb5 {[%clk 0:01:05]} 57. Bb3 {[%clk 0:00:24]}  Be2 {[%clk 0:01:05]} 58. Ba2 {[%clk 0:00:24]}  Bf1 {[%clk 0:01:05]} 59. Ke4 {[%clk 0:00:24]} 1/2-1/2


[Site "http://www.Chess.com"]